fUST/lending_fUST_20251010
["ID","MTS","AMOUNT","RATE_DAILY","PERIOD"]
[390553247,1760082644005,-242.78753328,0.00016712,2]
[390553248,1760082644017,-152.003691,0.00016712,2]
[390553249,1760082644026,-500.0,0.00016712,2]
[390553250,1760082644035,-500.0,0.00016712,2]
[390553251,1760082644044,-500.0,0.00016712,2]
[390553252,1760082644053,-826.52,0.00016712,2]
[390553253,1760082644061,-500.0,0.00016712,2]
[390553254,1760082644070,-500.0,0.00016712,2]
[390553255,1760082644079,-500.99212781,0.00016712,2]
[390553256,1760082644088,-2252.29,0.00016712,2]
[390553257,1760082644096,-500.0,0.00016712,2]
[390553258,1760082644105,-500.0,0.00016712,2]
[390553259,1760082644114,-500.0,0.00016712,2]
[390553260,1760082644123,-500.0,0.00016712,2]
[390553261,1760082644132,-500.0,0.00016712,2]
[390553262,1760082644141,-500.0,0.00016712,2]
[390553263,1760082644150,-500.0,0.00016712,2]
[390553264,1760082644158,-500.0,0.00016712,2]
[390553265,1760082644167,-500.0,0.00016712,2]
[390553266,1760082644176,-500.0,0.00016712,2]
[390553267,1760082644185,-500.0,0.00016712,2]
[390553268,1760082644194,-502.87965002,0.00016712,2]
[390553269,1760082644203,-500.0,0.00016712,2]
[390553270,1760082644212,-500.0,0.00016712,2]
[390553271,1760082644221,-500.0,0.00016712,2]
[390553272,1760082644229,-500.0,0.00016712,2]
[390553273,1760082644238,-500.0,0.00016712,2]
[390553274,1760082644247,-502.26101463,0.00016712,2]
[390553275,1760082644256,-500.0,0.00016712,2]
[390553276,1760082644265,-500.0,0.00016712,2]
[390553277,1760082644274,-500.0,0.00016712,2]
[390553278,1760082644283,-251.49135415,0.00016712,2]
[390553279,1760082644292,-500.0,0.00016712,2]
[390553280,1760082644301,-500.0,0.00016712,2]
[390553281,1760082644310,-500.0,0.00016712,2]
[390553282,1760082644319,-500.0,0.00016712,2]
[390553283,1760082644328,-501.96365242,0.00016712,2]
[390553284,1760082644337,-500.0,0.00016712,2]
[390553285,1760082644349,-500.0,0.00016712,2]
[390553286,1760082644358,-500.0,0.00016712,2]
[390553287,1760082644367,-1067.95,0.00016712,2]
[390553288,1760082644376,-500.0,0.00016712,2]
[390553289,1760082644385,-1601.67,0.00016712,2]
[390553290,1760082644394,-500.0,0.00016712,2]
[390553291,1760082644403,-500.0,0.00016712,2]
[390553292,1760082644412,-153.16741,0.00016712,2]
[390553293,1760082644422,-500.0,0.00016712,2]
[390553294,1760082644431,-500.0,0.00016712,2]
[390553295,1760082644442,-500.0,0.00016712,2]
[390553296,1760082644452,-500.0,0.00016712,2]
[390553297,1760082644461,-501.36818589,0.00016712,2]
[390553298,1760082644470,-151.0,0.00016712,2]
[390553299,1760082644479,-501.4714528,0.00016712,2]
[390553300,1760082644489,-500.0,0.00016712,2]
[390553301,1760082644498,-500.0,0.00016712,2]
[390553302,1760082644507,-500.0,0.00016712,2]
[390553303,1760082644518,-500.0,0.00016712,2]
[390553304,1760082644527,-500.0,0.00016712,2]
[390553305,1760082644536,-500.0,0.00016712,2]
[390553306,1760082644545,-500.0,0.00016712,2]
[390553307,1760082644554,-500.0,0.00016712,2]
[390553308,1760082644564,-500.0,0.00016712,2]
[390553310,1760082644573,-500.0,0.00016712,2]
[390553311,1760082644582,-1010.45,0.00016712,2]
[390553312,1760082644591,-151.0,0.00016712,2]
[390553314,1760082644600,-938.39,0.00016712,2]
[390553316,1760082644609,-500.0,0.00016712,2]
[390553318,1760082644618,-500.0,0.00016712,2]
[390553320,1760082644626,-500.0,0.00016712,2]
[390553322,1760082644635,-151.0,0.00016712,2]
[390553324,1760082644644,-641.83,0.00016712,2]
[390553326,1760082644653,-151.0,0.00016712,2]
[390553328,1760082644662,-500.0,0.00016712,2]
[390553330,1760082644671,-502.10012245,0.00016712,2]
[390553332,1760082644680,-511.85461427,0.00016712,2]
[390553334,1760082644689,-1039.02,0.00016712,2]
[390553336,1760082644698,-500.0,0.00016712,2]
[390553338,1760082644707,-500.0,0.00016712,2]
[390553341,1760082644717,-500.0,0.00016712,2]
[390553343,1760082644726,-500.0,0.00016712,2]
[390553345,1760082644736,-500.0,0.00016712,2]
[390553347,1760082644745,-500.0,0.00016712,2]
[390553349,1760082644754,-500.0,0.00016712,2]
[390553350,1760082644764,-500.0,0.00016712,2]
[390553353,1760082644775,-481.31449246,0.00016712,2]
[390553354,1760082644784,-500.0,0.00016712,2]
[390553356,1760082644793,-1806.92,0.00016712,2]
[390553358,1760082644802,-500.0,0.00016712,2]
[390553360,1760082644812,-500.0,0.00016712,2]
[390553363,1760082644822,-500.0,0.00016712,2]
[390553365,1760082644832,-500.0,0.00016712,2]
[390553367,1760082644840,-500.0,0.00016712,2]
[390553369,1760082644849,-500.0,0.00016712,2]
[390553371,1760082644858,-500.0,0.00016712,2]
[390553373,1760082644867,-1445.37,0.00016712,2]
[390553375,1760082644876,-500.0,0.00016712,2]
[390553376,1760082644885,-500.0,0.00016712,2]
[390553378,1760082644894,-500.0,0.00016712,2]
[390553380,1760082644903,-505.23165234,0.00016712,2]
[390553382,1760082644912,-500.0,0.00016712,2]
[390553384,1760082644921,-566.29,0.00016712,2]
[390553386,1760082644930,-747.05,0.00016712,2]
[390553388,1760082644939,-502.16497774,0.00016712,2]
[390553391,1760082644948,-500.0,0.00016712,2]
[390553392,1760082644957,-500.0,0.00016712,2]
[390553394,1760082644966,-500.0,0.00016712,2]
[390553397,1760082644976,-500.60525948,0.00016712,2]
[390553398,1760082644985,-500.0,0.00016712,2]
[390553400,1760082644994,-501.07654025,0.00016712,2]
[390553403,1760082645003,-500.0,0.00016712,2]
[390553405,1760082645013,-500.0,0.00016712,2]
[390553407,1760082645022,-500.0,0.00016712,2]
[390553408,1760082645031,-1519.29,0.00016712,2]
[390553411,1760082645041,-500.0,0.00016712,2]
[390553412,1760082645050,-5616.46,0.00016712,2]
[390553414,1760082645059,-500.0,0.00016712,2]
[390553416,1760082645069,-776.54,0.00016712,2]
[390553419,1760082645078,-500.0,0.00016712,2]
[390553421,1760082645088,-791.64,0.00016712,2]
[390553422,1760082645097,-500.0,0.00016712,2]
[390553424,1760082645106,-500.0,0.00016712,2]
[390553427,1760082645116,-2144.57,0.00016712,2]
[390553428,1760082645126,-500.0,0.00016712,2]
[390553430,1760082645136,-502.17831471,0.00016712,2]
[390553432,1760082645145,-500.0,0.00016712,2]
[390553434,1760082645155,-500.0,0.00016712,2]
[390553436,1760082645164,-2842.6,0.00016712,2]
[390553438,1760082645173,-500.0,0.00016712,2]
[390553441,1760082645183,-5591.99,0.00016712,2]
[390553443,1760082645192,-299.33,0.00016712,2]
[390553445,1760082645201,-864.2,0.00016712,2]
[390553446,1760082645209,-500.0,0.00016712,2]
[390553448,1760082645218,-860.68,0.00016712,2]
[390553450,1760082645227,-500.0,0.00016712,2]
[390553452,1760082645236,-500.0,0.00016712,2]
[390553454,1760082645245,-501.68338757,0.00016712,2]
[390553456,1760082645254,-500.0,0.00016712,2]
[390553458,1760082645263,-500.0,0.00016712,2]
[390553460,1760082645272,-3263.64,0.00016712,2]
[390553462,1760082645281,-500.0,0.00016712,2]
[390553464,1760082645290,-449.55092511,0.00016712,2]
[390553466,1760082645299,-926.29,0.00016712,2]
[390553468,1760082645308,-946.12,0.00016712,2]
[390553470,1760082645317,-500.0,0.00016712,2]
[390553472,1760082645326,-500.0,0.00016712,2]
[390553474,1760082645335,-964.12,0.00016712,2]
[390553476,1760082645344,-500.0,0.00016712,2]
[390553478,1760082645353,-1064.23,0.00016712,2]
[390553480,1760082645362,-500.44093117,0.00016712,2]
[390553482,1760082645371,-500.0,0.00016712,2]
[390553484,1760082645380,-2438.53,0.00016712,2]
[390553486,1760082645390,-500.0,0.00016712,2]
[390553488,1760082645399,-1251.07,0.00016712,2]
[390553490,1760082645408,-500.0,0.00016712,2]
[390553492,1760082645417,-500.0,0.00016712,2]
[390553494,1760082645426,-1423.15,0.00016712,2]
[390553496,1760082645436,-2083.23,0.00016712,2]
[390553498,1760082645448,-500.67279678,0.00016712,2]
[390553500,1760082645457,-504.06460321,0.00016712,2]
[390553502,1760082645467,-500.0,0.00016712,2]
[390553504,1760082645475,-500.0,0.00016712,2]
[390553506,1760082645486,-500.0,0.00016712,2]
[390553508,1760082645495,-623.6423207,0.00016712,2]
[390553510,1760082645504,-500.0,0.00016712,2]
[390553512,1760082645513,-1350.6,0.00016712,2]
[390553514,1760082645524,-500.0,0.00016712,2]
[390553516,1760082645534,-500.0,0.00016712,2]
[390553518,1760082645542,-1350.41,0.00016712,2]
[390553519,1760082645552,-500.63381307,0.00016712,2]
[390553521,1760082645564,-500.0,0.00016712,2]
[390553523,1760082645575,-754.23,0.00016712,2]
[390553525,1760082645584,-500.0,0.00016712,2]
[390553527,1760082645593,-500.0,0.00016712,2]
[390553529,1760082645603,-500.0,0.00016712,2]
[390553531,1760082645612,-641.79,0.00016712,2]
[390553533,1760082645621,-500.0,0.00016712,2]
[390553535,1760082645630,-500.0,0.00016712,2]
[390553537,1760082645639,-500.0,0.00016712,2]
[390553539,1760082645648,-664.23,0.00016712,2]
[390553541,1760082645657,-500.0,0.00016712,2]
[390553543,1760082645666,-500.0,0.00016712,2]
[390553545,1760082645675,-749.82,0.00016712,2]
[390553547,1760082645684,-500.0,0.00016712,2]
[390553549,1760082645693,-500.0,0.00016712,2]
[390553551,1760082645702,-970.64,0.00016712,2]
[390553553,1760082645711,-500.0,0.00016712,2]
[390553555,1760082645720,-500.0,0.00016712,2]
[390553557,1760082645730,-500.0,0.00016712,2]
[390553559,1760082645739,-4270.81,0.00016712,2]
[390553561,1760082645748,-500.0,0.00016712,2]
[390553563,1760082645757,-500.0,0.00016712,2]
[390553565,1760082645766,-500.0,0.00016712,2]
[390553567,1760082645776,-500.0,0.00016712,2]
[390553569,1760082645785,-500.0,0.00016712,2]
[390553571,1760082645795,-500.0,0.00016712,2]
[390553573,1760082645804,-613.59,0.00016712,2]
[390553575,1760082645813,-500.0,0.00016712,2]
[390553577,1760082645822,-500.0,0.00016712,2]
[390553579,1760082645831,-157.757348,0.00016712,2]
[390553581,1760082645840,-502.33835754,0.00016712,2]
[390553583,1760082645850,-500.0,0.00016712,2]
[390553585,1760082645859,-500.9515037,0.00016712,2]
[390553587,1760082645868,-2148.53,0.00016712,2]
[390553589,1760082645877,-500.0,0.00016712,2]
[390553591,1760082645887,-648.81,0.00016712,2]
[390553593,1760082645897,-500.0,0.00016712,2]
[390553595,1760082645906,-500.0,0.00016712,2]
[390553597,1760082645915,-2090.99,0.00016712,2]
[390553599,1760082645924,-500.0,0.00016712,2]
[390553601,1760082645933,-500.0,0.00016712,2]
[390553603,1760082645942,-959.4,0.00016712,2]
[390553605,1760082645951,-901.32,0.00016712,2]
[390553607,1760082645960,-500.0,0.00016712,2]
[390553608,1760082645969,-500.0,0.00016712,2]
[390553609,1760082645978,-500.0,0.00016712,2]
[390553610,1760082645987,-500.0,0.00016712,2]
[390553611,1760082645997,-560.0,0.00016712,2]
[390553612,1760082646006,-3460.43,0.00016712,2]
[390553613,1760082646015,-151.0,0.00016712,2]
[390553614,1760082646024,-1082.32,0.00016712,2]
[390553615,1760082646032,-500.0,0.00016712,2]
[390553616,1760082646041,-500.0,0.00016712,2]
[390553617,1760082646051,-300.0,0.00016766,2]
[390553618,1760082646059,-300.0,0.00016766,2]
[390553619,1760082646068,-300.0,0.00016766,2]
[390553620,1760082646077,-300.0,0.00016766,2]
[390553621,1760082646087,-300.0,0.00016766,2]
[390553622,1760082646095,-300.0,0.00016766,2]
[390553623,1760082646104,-300.0,0.00016766,2]
[390553624,1760082646113,-300.0,0.00016766,2]
[390553625,1760082646122,-300.0,0.00016766,2]
[390553626,1760082646131,-300.0,0.00016766,2]
[390553627,1760082646140,-300.0,0.00016766,2]
[390553628,1760082646149,-300.0,0.00016766,2]
[390553629,1760082646158,-300.0,0.00016766,2]
[390553630,1760082646167,-300.0,0.00016766,2]
[390553632,1760082646176,-300.0,0.00016766,2]
[390553633,1760082646185,-600.0,0.00016766,2]
[390553634,1760082646193,-151.638751,0.00016766,2]
[390553635,1760082646202,-151.0,0.00016766,2]
[390553636,1760082646211,-151.0,0.00016766,2]
[390553638,1760082646220,-151.0,0.00016766,2]
[390553640,1760082646229,-168.374148,0.00016766,2]
[390553642,1760082646238,-151.0,0.00016766,2]
[390553644,1760082646247,-151.0,0.00016766,2]
[390553645,1760082646256,-151.0,0.00016766,2]
[390553646,1760082646265,-151.0,0.00016766,2]
[390553647,1760082646275,-217.454934,0.00016766,2]
[390553648,1760082646285,-217.454934,0.00016766,2]
[390553649,1760082646294,-217.454934,0.00016766,2]
[390553650,1760082646303,-217.454934,0.00016766,2]
[390553651,1760082646312,-151.0,0.00016766,2]
[390553652,1760082646320,-151.0,0.00016766,2]
[390553654,1760082646329,-151.0,0.00016766,2]
[390553655,1760082646338,-1461.0,0.00016767,2]
[390553656,1760082646348,-2405.0,0.00016775,2]
[390553658,1760082646357,-1232.0,0.0001681,2]
[390553659,1760082646366,-558.94592125,0.00016818,2]
[390553661,1760082646375,-1461.0,0.00016822,2]
[390553663,1760082646385,-1461.0,0.00016876,2]
[390553666,1760082646395,-1000.0,0.000169,2]
[390553667,1760082646404,-1461.0,0.00016931,2]
[390553669,1760082646413,-200.53525832,0.00016985,2]
[390553671,1760082646422,-186.21259921,0.00016985,2]
[390553673,1760082646432,-200.0,0.00016985,2]
[390553675,1760082646444,-1461.0,0.00016986,2]
[390553677,1760082646453,-500.0,0.00016986,2]
[390553679,1760082646462,-500.0,0.00016986,2]
[390553681,1760082646472,-500.0,0.00016986,2]
[390553683,1760082646482,-500.0,0.00016986,2]
[390553685,1760082646491,-500.0,0.00016986,2]
[390553687,1760082646500,-500.0,0.00016986,2]
[390553689,1760082646510,-505.18564689,0.00016986,2]
[390553691,1760082646521,-505.9332005,0.00016986,2]
[390553693,1760082646531,-500.0,0.00016986,2]
[390553695,1760082646541,-500.0,0.00016986,2]
[390553697,1760082646550,-151.0,0.00016986,2]
[390553699,1760082646560,-151.0,0.00016986,2]
[390553701,1760082646569,-208.468505,0.00016986,2]
[390553703,1760082646578,-500.0,0.00016986,2]
[390553705,1760082646589,-848.6,0.00016986,2]
[390553707,1760082646600,-500.0,0.00016986,2]
[390553709,1760082646609,-500.0,0.00016986,2]
[390553711,1760082646618,-487.99195088,0.00016986,2]
[390553713,1760082646627,-500.0,0.00016986,2]
[390553715,1760082646636,-875.94,0.00016986,2]
[390553717,1760082646645,-500.0,0.00016986,2]
[390553719,1760082646655,-500.0,0.00016986,2]
[390553721,1760082646663,-500.0,0.00016986,2]
[390553723,1760082646677,-500.0,0.00016986,2]
[390553725,1760082646687,-500.0,0.00016986,2]
[390553727,1760082646696,-1214.46,0.00016986,2]
[390553729,1760082646706,-500.0,0.00016986,2]
[390553731,1760082646716,-500.0,0.00016986,2]
[390553733,1760082646725,-1111.51,0.00016986,2]
[390553735,1760082646734,-500.0,0.00016986,2]
[390553737,1760082646744,-500.0,0.00016986,2]
[390553739,1760082646753,-500.0,0.00016986,2]
[390553741,1760082646763,-500.0,0.00016986,2]
[390553743,1760082646774,-500.0,0.00016986,2]
[390553745,1760082646785,-500.0,0.00016986,2]
[390553747,1760082646795,-500.0,0.00016986,2]
[390553749,1760082646805,-500.0,0.00016986,2]
[390553751,1760082646814,-500.0,0.00016986,2]
[390553753,1760082646824,-503.11882151,0.00016986,2]
[390553755,1760082646833,-500.0,0.00016986,2]
[390553757,1760082646842,-500.0,0.00016986,2]
[390553759,1760082646852,-500.0,0.00016986,2]
[390553761,1760082646861,-500.0,0.00016986,2]
[390553763,1760082646870,-500.0,0.00016986,2]
[390553765,1760082646880,-500.0,0.00016986,2]
[390553767,1760082646890,-233.625741,0.00016986,2]
[390553769,1760082646901,-233.625741,0.00016986,2]
[390553771,1760082646910,-233.625741,0.00016986,2]
[390553773,1760082646918,-818.44,0.00016986,2]
[390553775,1760082646927,-500.0,0.00016986,2]
[390553795,1760082647110,-500.0,0.00016986,2]
[390553797,1760082647120,-645.31,0.00016986,2]
[390553799,1760082647130,-500.0,0.00016986,2]
[390553801,1760082647139,-500.0,0.00016986,2]
[390553803,1760082647148,-500.0,0.00016986,2]
[390553805,1760082647157,-500.0,0.00016986,2]
[390553807,1760082647166,-151.0,0.00016986,2]
[390553809,1760082647175,-615.6,0.00016986,2]
[390553811,1760082647184,-156.88579155,0.00016986,2]
[390553813,1760082647192,-151.0,0.00016986,2]
[390553815,1760082647202,-151.0,0.00016986,2]
[390553817,1760082647211,-239.06881,0.00016986,2]
[390553819,1760082647220,-500.0,0.00016986,2]
[390553821,1760082647229,-151.0,0.00016986,2]
[390553823,1760082647237,-151.0,0.00016986,2]
[390553825,1760082647247,-151.0,0.00016986,2]
[390553827,1760082647256,-152.507168,0.00016986,2]
[390553829,1760082647266,-375.81580885,0.00016986,2]
[390553831,1760082647276,-500.0,0.00016986,2]
[390553833,1760082647285,-500.0,0.00016986,2]
[390553835,1760082647295,-500.0,0.00016986,2]
[390553837,1760082647304,-500.0,0.00016986,2]
[390553839,1760082647312,-979.59,0.00016986,2]
[390553841,1760082647321,-874.68,0.00016986,2]
[390553843,1760082647331,-500.0,0.00016986,2]
[390553845,1760082647340,-500.0,0.00016986,2]
[390553847,1760082647350,-300.0,0.00016986,2]
[390553849,1760082647359,-500.0,0.00016986,2]
[390553851,1760082647368,-500.0,0.00016986,2]
[390553853,1760082647377,-500.0,0.00016986,2]
[390553855,1760082647386,-152.275113,0.00016986,2]
[390553857,1760082647395,-500.0,0.00016986,2]
[390553859,1760082647405,-972.03,0.00016986,2]
[390553861,1760082647414,-151.0,0.00016986,2]
[390553863,1760082647423,-151.0,0.00016986,2]
[390553865,1760082647432,-500.0,0.00016986,2]
[390553867,1760082647442,-500.0,0.00016986,2]
[390553869,1760082647455,-877.09,0.00016986,2]
[390553871,1760082647464,-500.0,0.00016986,2]
[390553873,1760082647473,-151.0,0.00016986,2]
[390553875,1760082647482,-500.0,0.00016986,2]
[390553877,1760082647492,-151.0,0.00016986,2]
[390553879,1760082647502,-151.0,0.00016986,2]
[390553881,1760082647511,-500.0,0.00016986,2]
[390553883,1760082647521,-500.0,0.00016986,2]
[390553885,1760082647532,-500.0,0.00016986,2]
[390553887,1760082647541,-500.0,0.00016986,2]
[390553889,1760082647550,-500.0,0.00016986,2]
[390553891,1760082647559,-500.0,0.00016986,2]
[390553893,1760082647569,-636.23,0.00016986,2]
[390553895,1760082647579,-152.298177,0.00016986,2]
[390553897,1760082647588,-500.0,0.00016986,2]
[390553899,1760082647597,-152.319799,0.00016986,2]
[390553901,1760082647606,-500.0,0.00016986,2]
[390553903,1760082647617,-500.0,0.00016986,2]
[390553905,1760082647626,-500.0,0.00016986,2]
[390553907,1760082647635,-937.69,0.00016986,2]
[390553909,1760082647644,-151.0,0.00016986,2]
[390553911,1760082647653,-151.0,0.00016986,2]
[390553913,1760082647662,-500.0,0.00016986,2]
[390553915,1760082647671,-500.0,0.00016986,2]
[390553917,1760082647680,-500.0,0.00016986,2]
[390553919,1760082647689,-500.0,0.00016986,2]
[390553921,1760082647698,-500.0,0.00016986,2]
[390553923,1760082647706,-435.40714589,0.00016986,2]
[390553925,1760082647715,-500.0,0.00016986,2]
[390553927,1760082647725,-151.0,0.00016986,2]
[390553929,1760082647734,-151.0,0.00016986,2]
[390553931,1760082647742,-500.0,0.00016986,2]
[390553933,1760082647751,-151.0,0.00016986,2]
[390553935,1760082647760,-151.0,0.00016986,2]
[390553937,1760082647769,-151.0,0.00016986,2]
[390553939,1760082647780,-151.0,0.00016986,2]
[390553941,1760082647788,-189.113488,0.00016986,2]
[390553943,1760082647798,-893.09,0.00016986,2]
[390553945,1760082647807,-504.34556787,0.00016986,2]
[390553947,1760082647816,-151.0,0.00016986,2]
[390553949,1760082647825,-151.0,0.00016986,2]
[390553951,1760082647834,-500.0,0.00016986,2]
[390553953,1760082647843,-500.0,0.00016986,2]
[390553955,1760082647852,-1196.48,0.00016986,2]
[390553957,1760082647861,-500.0,0.00016986,2]
[390553959,1760082647870,-151.0,0.00016986,2]
[390553962,1760082647890,-151.0,0.00016986,2]
[390553964,1760082647902,-151.0,0.00016986,2]
[390553966,1760082647913,-151.0,0.00016986,2]
[390553969,1760082647923,-151.0,0.00016986,2]
[390553971,1760082647932,-151.0,0.00016986,2]
[390553973,1760082647942,-500.0,0.00016986,2]
[390553975,1760082647954,-155.037749,0.00016986,2]
[390553977,1760082647964,-500.0,0.00016986,2]
[390553979,1760082647975,-502.4887335,0.00016986,2]
[390553981,1760082647986,-7550.27,0.00016986,2]
[390553983,1760082647996,-151.0,0.00016986,2]
[390553985,1760082648006,-151.0,0.00016986,2]
[390553987,1760082648016,-500.0,0.00016986,2]
[390553989,1760082648027,-500.0,0.00016986,2]
[390553991,1760082648036,-500.0,0.00016986,2]
[390553993,1760082648046,-503.57841351,0.00016986,2]
[390553995,1760082648055,-500.0,0.00016986,2]
[390553997,1760082648064,-500.0,0.00016986,2]
[390553999,1760082648074,-500.0,0.00016986,2]
[390554001,1760082648083,-500.0,0.00016986,2]
[390554003,1760082648092,-156.61624099,0.00016986,2]
[390554005,1760082648102,-335.28662782,0.00016986,2]
[390554007,1760082648111,-500.0,0.00016986,2]
[390554009,1760082648122,-500.0,0.00016986,2]
[390554011,1760082648131,-500.0,0.00016986,2]
[390554013,1760082648141,-500.0,0.00016986,2]
[390554015,1760082648150,-500.0,0.00016986,2]
[390554017,1760082648159,-500.0,0.00016986,2]
[390554019,1760082648169,-500.0,0.00016986,2]
[390554021,1760082648179,-500.0,0.00016986,2]
[390554023,1760082648189,-151.0,0.00016986,2]
[390554025,1760082648199,-500.0,0.00016986,2]
[390554027,1760082648209,-500.0,0.00016986,2]
[390554029,1760082648218,-500.0,0.00016986,2]
[390554031,1760082648228,-500.0,0.00016986,2]
[390554033,1760082648238,-500.0,0.00016986,2]
[390554035,1760082648247,-500.0,0.00016986,2]
[390554037,1760082648257,-826.52,0.00016986,2]
[390554039,1760082648266,-500.0,0.00016986,2]
[390554041,1760082648276,-500.0,0.00016986,2]
[390554044,1760082648286,-2252.29,0.00016986,2]
[390554046,1760082648295,-500.0,0.00016986,2]
[390554048,1760082648305,-500.0,0.00016986,2]
[390554049,1760082648315,-500.0,0.00016986,2]
[390554051,1760082648324,-500.0,0.00016986,2]
[390554054,1760082648334,-500.0,0.00016986,2]
[390554056,1760082648343,-500.0,0.00016986,2]
[390554058,1760082648352,-502.38203244,0.00016986,2]
[390554059,1760082648362,-500.0,0.00016986,2]
[390554062,1760082648372,-500.0,0.00016986,2]
[390554064,1760082648381,-501.49543512,0.00016986,2]
[390554066,1760082648391,-189.29873602,0.00016986,2]
[390554067,1760082648400,-500.0,0.00016986,2]
[390554070,1760082648409,-500.0,0.00016986,2]
[390554071,1760082648419,-500.0,0.00016986,2]
[390554072,1760082648428,-252.52752145,0.00016986,2]
[390554074,1760082648439,-500.0,0.00016986,2]
[390554076,1760082648451,-500.0,0.00016986,2]
[390554078,1760082648460,-500.0,0.00016986,2]
[390554080,1760082648470,-500.0,0.00016986,2]
[390554082,1760082648479,-500.0,0.00016986,2]
[390554084,1760082648490,-500.0,0.00016986,2]
[390554086,1760082648499,-185.49,0.00016986,2]
[390554088,1760082648508,-1067.95,0.00016986,2]
[390554090,1760082648518,-500.0,0.00016986,2]
[390554092,1760082648528,-1601.67,0.00016986,2]
[390554094,1760082648537,-500.0,0.00016986,2]
[390554096,1760082648546,-500.0,0.00016986,2]
[390554098,1760082648555,-500.0,0.00016986,2]
[390554100,1760082648565,-500.0,0.00016986,2]
[390554102,1760082648574,-500.0,0.00016986,2]
[390554104,1760082648583,-500.0,0.00016986,2]
[390554106,1760082648593,-244.097566,0.00016986,2]
[390554108,1760082648602,-500.0,0.00016986,2]
[390554110,1760082648611,-500.0,0.00016986,2]
[390554111,1760082648621,-500.0,0.00016986,2]
[390554113,1760082648630,-500.0,0.00016986,2]
[390554115,1760082648639,-500.0,0.00016986,2]
[390554117,1760082648649,-500.0,0.00016986,2]
[390554120,1760082648659,-500.0,0.00016986,2]
[390554121,1760082648669,-500.0,0.00016986,2]
[390554123,1760082648678,-500.0,0.00016986,2]
[390554125,1760082648687,-1010.45,0.00016986,2]
[390554127,1760082648696,-151.0,0.00016986,2]
[390554129,1760082648705,-938.39,0.00016986,2]
[390554131,1760082648715,-151.0,0.00016986,2]
[390554132,1760082648724,-500.0,0.00016986,2]
[390554133,1760082648733,-500.0,0.00016986,2]
[390554134,1760082648743,-500.0,0.00016986,2]
[390554135,1760082648752,-151.0,0.00016986,2]
[390554136,1760082648761,-641.83,0.00016986,2]
[390554137,1760082648770,-151.0,0.00016986,2]
[390554138,1760082648779,-151.0,0.00016986,2]
[390554139,1760082648788,-500.0,0.00016986,2]
[390554140,1760082648797,-151.0,0.00016986,2]
[390554141,1760082648806,-1039.02,0.00016986,2]
[390554142,1760082648815,-500.0,0.00016986,2]
[390554143,1760082648825,-500.0,0.00016986,2]
[390554144,1760082648834,-500.0,0.00016986,2]
[390554145,1760082648843,-500.0,0.00016986,2]
[390554146,1760082648852,-500.0,0.00016986,2]